bitfinex/quotes_BTCUSD_20250607
["timestamp","ask_amount","ask_price","bid_price","bid_amount"]
[1749286979867,1.67954217,104950.0,104940.0,0.3778]
[1749286980102,1.661694,104950.0,104940.0,0.3778]
[1749286980315,1.66169454,104950.0,104940.0,0.3778]
[1749286980732,1.67954415,104950.0,104940.0,0.3778]
[1749286981838,1.63940094,104950.0,104940.0,0.3778]
[1749286982044,1.64609482,104950.0,104940.0,0.3778]
[1749286982472,1.6572513,104950.0,104940.0,0.3778]
[1749286982675,1.66394518,104950.0,104940.0,0.3778]
[1749286983383,1.64609482,104950.0,104940.0,0.3778]
[1749286983577,1.6572513,104950.0,104940.0,0.3778]
[1749286983793,1.64609581,104950.0,104940.0,0.3778]
[1749286984016,1.65725393,104950.0,104940.0,0.3778]
[1749286984306,1.6639488,104950.0,104940.0,0.3778]
[1749286985251,1.66394981,104950.0,104940.0,0.3778]
[1749286985468,1.64609608,104950.0,104940.0,0.3778]
[1749286985688,1.66394981,104950.0,104940.0,0.3778]
[1749286985878,1.64609608,104950.0,104940.0,0.3778]
[1749286986125,1.66394981,104950.0,104940.0,0.3778]
[1749286987045,1.66395525,104950.0,104940.0,0.3778]
[1749286987261,1.64609826,104950.0,104940.0,0.3943]
[1749286987507,1.66395791,104950.0,104940.0,0.3943]
[1749286987736,1.64609839,104950.0,104940.0,0.3943]
[1749286987946,1.66395799,104950.0,104940.0,0.3943]
[1749286988171,1.66397718,104950.0,104940.0,0.3943]
[1749286988583,1.66397716,104950.0,104940.0,0.3943]
[1749286988790,1.63940094,104950.0,104940.0,0.3943]
[1749286989002,1.66397712,104950.0,104940.0,0.3943]
[1749286989214,1.6639772,104950.0,104940.0,0.3943]
[1749286989422,1.66397713,104950.0,104940.0,0.3943]
[1749286989836,1.66397569,104950.0,104940.0,0.3943]
[1749286990113,1.6461021,104950.0,104940.0,0.3943]
[1749286990330,1.66397186,104950.0,104940.0,0.3943]
[1749286990501,1.6461021,104950.0,104940.0,0.3943]
[1749286990705,0.62261416,104940.0,104930.0,0.01523706]
[1749286990908,1.19719942,104940.0,104930.0,0.10311706]
[1749286991827,1.19719838,104940.0,104930.0,0.10311706]
[1749286992040,1.17932979,104940.0,104930.0,0.39199706]
[1749286992308,1.19049724,104940.0,104930.0,0.39199706]
[1749286992525,1.19719797,104940.0,104930.0,0.39399706]
[1749286992736,1.19719806,104940.0,104930.0,0.39399706]
[1749286993182,1.74721254,104940.0,104930.0,0.39599706]
[1749286993473,1.74721224,104940.0,104930.0,0.39599706]
[1749286993687,1.74721213,104940.0,104930.0,0.39599706]
[1749286993908,1.74721213,104940.0,104930.0,0.41149706]
[1749286994120,1.72934376,104940.0,104930.0,0.41149706]
[1749286994382,1.74721213,104940.0,104930.0,0.41149706]
[1749286994595,1.74051149,104940.0,104930.0,0.41149706]
[1749286994809,1.74721166,104940.0,104930.0,0.41149706]
[1749286995243,1.72934329,104940.0,104930.0,0.41149706]
[1749286995735,1.72264312,104940.0,104930.0,0.41149706]
[1749286995989,1.19049894,104940.0,104930.0,0.41149706]
[1749286996231,1.7472148,104940.0,104930.0,0.41149706]
[1749286996984,1.74721595,104940.0,104930.0,0.41149706]
[1749286997215,1.7293445,104940.0,104930.0,0.41149706]
[1749286997475,1.74721752,104940.0,104930.0,0.41149706]
[1749286997689,1.74721798,104940.0,104930.0,0.41149706]
[1749286998622,1.747218,104940.0,104930.0,0.41149706]
[1749286998864,1.74721805,104940.0,104930.0,0.41149706]
[1749286999087,1.72934537,104940.0,104930.0,0.41149706]
[1749286999345,1.74721807,104940.0,104930.0,0.41149706]
[1749286999868,1.74721807,104940.0,104930.0,0.12261706]
[1749287000099,1.74721807,104940.0,104930.0,0.41149706]
[1749287000321,1.77009369,104940.0,104930.0,0.41149706]
[1749287000547,1.74721756,104940.0,104930.0,0.41149706]
[1749287000764,1.74721745,104940.0,104930.0,0.41149706]
[1749287001688,1.74721829,104940.0,104930.0,0.41149706]
[1749287001883,1.72934544,104940.0,104930.0,0.41149706]
[1749287002094,1.74721837,104940.0,104930.0,0.41149706]
[1749287002295,1.72264312,104940.0,104930.0,0.41149706]
[1749287002714,1.19720415,104940.0,104930.0,0.41149706]
[1749287003383,1.19720418,104940.0,104930.0,0.41149706]
[1749287003584,1.19720416,104940.0,104930.0,0.41149706]
[1749287003789,1.19720407,104940.0,104930.0,0.41149706]
[1749287003997,1.19050167,104940.0,104930.0,0.41149706]
[1749287004209,0.64718957,104940.0,104930.0,0.41149706]
[1749287004414,0.46896015,104940.0,104930.0,0.63068987]
[1749287004633,0.4594309,104940.0,104930.0,0.64021948]
[1749287004839,0.4594309,104940.0,104930.0,0.649749]
[1749287005254,0.1194309,104940.0,104930.0,0.25392987]
[1749287005462,0.1194308,104940.0,104930.0,0.64021939]
[1749287006692,0.09202852,104940.0,104930.0,1.28663335]
[1749287006812,0.10989222,104940.0,104930.0,1.28663335]
[1749287007023,0.12894982,104940.0,104930.0,1.28663335]
[1749287007256,0.10155723,104940.0,104930.0,1.28663335]
[1749287007453,0.12894976,104940.0,104930.0,1.28663335]
[1749287007663,0.11108612,104940.0,104930.0,1.28663335]
[1749287008978,0.10155723,104940.0,104930.0,1.28580268]
[1749287009177,0.11108612,104940.0,104930.0,1.28580268]
[1749287009675,0.12061519,104940.0,104930.0,1.28580268]
[1749287009877,0.11108612,104940.0,104930.0,1.28580268]
[1749287010253,0.10155723,104940.0,104930.0,1.28580268]
[1749287010456,0.11108612,104940.0,104930.0,1.28580268]
[1749287011405,0.1206151,104940.0,104930.0,1.28580268]
[1749287011907,0.10155723,104940.0,104930.0,1.28580268]
[1749287012504,0.11108621,104940.0,104930.0,1.28580268]
[1749287013005,0.11108612,104940.0,104930.0,1.28580268]
[1749287013217,0.1206151,104940.0,104930.0,1.28580268]
[1749287013623,0.11108612,104940.0,104930.0,1.28580268]
[1749287014407,0.12181505,104940.0,104930.0,1.28580268]
[1749287014608,0.11228607,104940.0,104930.0,1.28580268]
[1749287014809,0.12181514,104940.0,104930.0,1.28580268]
[1749287015036,0.13966713,104940.0,104930.0,1.28580268]
[1749287015612,0.13966713,104940.0,104930.0,0.7357882]
[1749287016437,0.12181514,104940.0,104930.0,0.7357882]
[1749287016650,0.1313443,104940.0,104930.0,0.7357882]
[1749287016857,0.13966782,104940.0,104930.0,0.7357882]
[1749287017070,0.13966795,104940.0,104930.0,0.7357882]
[1749287017299,0.13966796,104940.0,104930.0,0.7357882]
[1749287017506,0.14919712,104940.0,104930.0,0.7357882]
[1749287018277,0.14919703,104940.0,104930.0,0.7357882]
[1749287018958,0.13966787,104940.0,104930.0,0.7357882]
[1749287019827,0.13966715,104940.0,104930.0,0.7357882]
[1749287020288,0.14919631,104940.0,104930.0,0.7357882]
[1749287020502,0.14919639,104940.0,104930.0,0.72625868]
[1749287020719,0.13134439,104940.0,104930.0,0.73578829]
[1749287020919,0.6992108,104940.0,104930.0,0.72625868]
[1749287021132,0.69801085,104940.0,104930.0,0.73578829]
[1749287021539,0.69801052,104940.0,104930.0,0.73578829]
[1749287021745,0.68015892,104940.0,104930.0,0.73578829]
[1749287022363,0.14799647,104940.0,104930.0,0.73578829]
[1749287022566,0.14919642,104940.0,104930.0,0.73578829]
[1749287023341,0.14919646,104940.0,104930.0,0.72625868]
[1749287023465,0.13134439,104940.0,104930.0,0.73578829]
[1749287023944,0.14919671,104940.0,104930.0,0.73578829]
[1749287024081,0.32192948,104940.0,104930.0,0.72625868]
[1749287024296,0.14799676,104940.0,104930.0,0.72625868]
[1749287024494,0.14919671,104940.0,104930.0,0.72625868]
[1749287025129,0.13134439,104940.0,104930.0,0.72625868]
[1749287025328,0.14919677,104940.0,104930.0,0.72625868]
[1749287025535,0.13134439,104940.0,104930.0,0.72625868]
[1749287025738,0.12181587,104940.0,104930.0,0.72625868]
[1749287025922,0.1396694,104940.0,104930.0,0.72625868]
[1749287026118,0.1396694,104940.0,104930.0,0.97345868]
[1749287026314,0.1396694,104940.0,104930.0,0.98298829]
[1749287026715,0.12181587,104940.0,104930.0,0.97345868]
[1749287026923,0.13966906,104940.0,104930.0,0.97345868]
[1749287027122,0.13966906,104940.0,104930.0,0.98298829]
[1749287027491,0.13966895,104940.0,104930.0,0.98298829]
[1749287027776,0.14919822,104940.0,104930.0,0.98298829]
[1749287028713,0.13134503,104940.0,104930.0,0.98298829]
[1749287029104,0.14920023,104940.0,104930.0,0.98298829]
[1749287029305,0.14920028,104940.0,104930.0,0.98298829]
[1749287029746,0.13134503,104940.0,104930.0,0.98298829]
[1749287029951,0.14920268,104940.0,104930.0,0.98298829]
[1749287030420,0.13134503,104940.0,104930.0,0.98298829]
[1749287030629,0.14920268,104940.0,104930.0,0.98298829]
[1749287031052,0.1206152,104940.0,104930.0,0.98298829]
[1749287031266,0.13014427,104940.0,104930.0,0.99251781]
[1749287031484,0.1206152,104940.0,104930.0,0.99251781]
[1749287031707,0.13014344,104940.0,104930.0,0.99251781]
[1749287031915,0.13014344,104940.0,104930.0,1.54253229]
[1749287032144,0.11228579,104940.0,104930.0,0.99251781]
[1749287032358,0.1301495,104940.0,104930.0,0.99251781]
[1749287033008,0.13967848,104940.0,104930.0,0.99251781]
[1749287033442,0.13967851,104940.0,104930.0,0.99251781]
[1749287033879,0.13967911,104940.0,104930.0,0.99251781]
[1749287034358,0.12181477,104940.0,104930.0,0.99251781]
[1749287034583,0.13969127,104940.0,104930.0,0.99251781]
[1749287034852,0.13969126,104940.0,104930.0,0.99251781]
[1749287035744,0.12181477,104940.0,104930.0,0.99251781]
[1749287035954,0.13969126,104940.0,104930.0,0.99251781]
[1749287036380,0.13969159,104940.0,104930.0,0.99251781]
[1749287038119,0.14922066,104940.0,104930.0,0.99251781]
[1749287038871,0.14922076,104940.0,104930.0,0.99251781]
[1749287039080,0.75026531,104950.0,104930.0,0.99251717]
[1749287039081,0.67004564,104950.0,104930.0,0.99251717]
[1749287039485,0.00952907,104940.0,104930.0,0.98298774]
[1749287040110,0.01905805,104940.0,104930.0,0.97145822]
[1749287040353,0.0285873,104940.0,104930.0,0.97145822]
[1749287040545,0.04109608,104940.0,104930.0,0.97145822]
[1749287040805,0.05062469,104940.0,104930.0,0.97145822]
[1749287041045,0.05062469,104940.0,104930.0,0.98098774]
[1749287041046,0.00952861,104940.0,104930.0,0.98098774]
[1749287041259,0.0190575,104940.0,104930.0,0.98098774]
[1749287041726,0.0190575,104940.0,104930.0,0.98298774]
[1749287041946,0.02858648,104940.0,104930.0,0.98298774]
[1749287042393,0.03811555,104940.0,104930.0,0.98298774]
[1749287042611,0.02858648,104940.0,104930.0,0.98298774]
[1749287044995,0.02858648,104940.0,104930.0,0.97345822]
[1749287045208,0.03811555,104940.0,104930.0,0.98298774]
[1749287045923,0.04764471,104940.0,104930.0,0.98298774]
[1749287047769,0.04764471,104940.0,104930.0,0.97337822]
[1749287048412,0.03811555,104940.0,104930.0,0.98290774]
[1749287049063,0.03811555,104940.0,104930.0,0.97337822]
[1749287049278,0.03811555,104940.0,104930.0,0.98290774]
[1749287049493,0.04764471,104940.0,104930.0,0.97337822]
[1749287050502,0.04764471,104940.0,104930.0,0.98290774]
[1749287050718,0.04764471,104940.0,104930.0,0.97337822]
[1749287051168,0.06551623,104940.0,104930.0,0.97337822]
[1749287051593,0.05598707,104940.0,104930.0,0.97337822]
[1749287051807,0.0476448,104940.0,104930.0,0.97337822]
[1749287052030,0.06551595,104940.0,104930.0,0.97337822]
[1749287052903,0.06551586,104940.0,104930.0,0.97337822]
[1749287053777,0.04764471,104940.0,104930.0,0.97337822]
[1749287054196,0.06551586,104940.0,104930.0,0.97337822]
[1749287055054,0.06551587,104940.0,104930.0,0.97337822]
[1749287055264,0.06551587,104940.0,104930.0,0.96384861]
[1749287055468,0.04764535,104940.0,104930.0,0.96384861]
[1749287055670,0.05598846,104940.0,104930.0,0.96384861]
[1749287055880,0.05598846,104940.0,104930.0,0.97337822]
[1749287056292,0.05598846,104940.0,104930.0,0.96384861]
[1749287056850,0.06551496,104940.0,104930.0,0.96384861]
[1749287057259,0.0655149,104940.0,104930.0,0.96384861]
[1749287057714,0.06551465,104940.0,104930.0,0.96384861]
[1749287057851,0.06551462,104940.0,104930.0,0.97337822]
[1749287058054,0.05598537,104940.0,104930.0,0.97337822]
[1749287058921,0.05598614,104940.0,104930.0,0.97337822]
[1749287059127,0.0381161,104940.0,104930.0,0.97337822]
[1749287059322,0.05598614,104940.0,104930.0,0.97337822]
[1749287059973,0.05598638,104940.0,104930.0,0.97337822]
[1749287060673,0.05598637,104940.0,104930.0,0.97337822]
[1749287060883,0.02858694,104940.0,104930.0,0.98290774]
[1749287061268,0.0464572,104940.0,104930.0,0.98290774]
[1749287062022,0.01787026,104940.0,104930.0,1.53292222]
[1749287062167,0.02739982,104940.0,104930.0,1.53292222]
[1749287062371,0.03692865,104940.0,104930.0,1.53292222]
[1749287062559,0.02739985,104940.0,104930.0,1.53292222]
[1749287062759,0.03692856,104940.0,104930.0,1.53292222]
[1749287062990,0.0369286,104940.0,104930.0,1.53292222]
[1749287063618,0.0464585,104940.0,104930.0,1.53292222]
[1749287063936,0.0369297,104940.0,104930.0,1.53292222]
[1749287064124,0.03692985,104940.0,104930.0,1.53292222]
[1749287064339,0.01905723,104940.0,104930.0,1.53292222]
[1749287064503,0.03692984,104940.0,104930.0,1.53292222]
[1749287064920,0.01905723,104940.0,104930.0,1.53292222]
[1749287065135,0.03692983,104940.0,104930.0,1.53292222]
[1749287065695,0.03692973,104940.0,104930.0,1.53292222]
[1749287066542,0.04645853,104940.0,104930.0,1.53292222]
[1749287066953,0.03692973,104940.0,104930.0,1.53292222]
[1749287067157,0.04645853,104940.0,104930.0,1.53292222]
[1749287067380,0.03692973,104940.0,104930.0,1.53292222]
[1749287067586,0.04645857,104940.0,104930.0,1.53292222]
[1749287067793,0.03692986,104940.0,104930.0,1.53292222]
[1749287068000,0.01905713,104940.0,104930.0,1.53292222]
[1749287068206,0.03693327,104940.0,104930.0,1.53292222]
[1749287068412,0.01905713,104940.0,104930.0,1.53292222]
[1749287068639,0.03693327,104940.0,104930.0,1.53292222]
[1749287068978,0.03693321,104940.0,104930.0,1.53292222]
[1749287069176,0.03693324,104940.0,104930.0,1.53292222]
[1749287069379,0.04646195,104940.0,104930.0,1.53292222]
[1749287069604,0.04646196,104940.0,104930.0,1.53292222]
[1749287069807,0.01905713,104940.0,104930.0,1.53292222]
[1749287070434,0.03693361,104940.0,104930.0,1.53292222]
[1749287070597,0.04646232,104940.0,104930.0,1.53292222]
[1749287071169,0.02858584,104940.0,104930.0,1.53292222]
[1749287071795,0.0178765,104940.0,104930.0,1.52339216]
[1749287071947,0.02740503,104940.0,104930.0,1.52339216]
[1749287072520,0.02740501,104940.0,104930.0,1.52339216]
[1749287072966,0.00952852,104940.0,104930.0,1.52339216]
[1749287073216,0.02740501,104940.0,104930.0,1.52339216]
[1749287073633,0.14949852,104940.0,104930.0,1.52339216]
[1749287073855,0.16737501,104940.0,104930.0,1.52339216]
[1749287074482,0.17690372,104940.0,104930.0,1.52339216]
[1749287074689,0.1769038,104940.0,104930.0,1.52339216]
[1749287074904,0.13997,104940.0,104930.0,2.07340664]
[1749287075118,0.13997,104940.0,104930.0,1.52339216]
[1749287075326,0.13997,104940.0,104930.0,1.55203016]
[1749287078030,0.13997,104940.0,104930.0,2.10204464]
[1749287078380,0.13997,104940.0,104930.0,1.55203016]
[1749287082899,0.13997,104940.0,104930.0,2.11658549]
[1749287084830,0.13997,104940.0,104930.0,2.1927101]
[1749287085914,0.13997,104940.0,104930.0,2.1907101]
[1749287086334,0.13997,104940.0,104930.0,2.1957101]
[1749287086542,0.13997,104940.0,104930.0,2.1937101]
[1749287086970,0.13997,104940.0,104930.0,2.12258549]
[1749287088884,0.13997,104940.0,104930.0,2.46258549]
[1749287089118,0.13997,104940.0,104930.0,2.51258549]
[1749287091854,0.13997,104940.0,104930.0,3.06259997]
[1749287092754,0.07675702,104980.0,104970.0,0.21910911]
[1749287092967,0.07675702,104980.0,104970.0,1.50546307]
[1749287093176,0.07675702,104980.0,104970.0,1.52146307]
[1749287094018,0.07675702,104980.0,104970.0,1.55222881]
[1749287095285,0.07675702,104980.0,104970.0,1.53622881]
[1749287095702,0.07675702,104980.0,104970.0,1.53722881]
[1749287096807,0.0706965,104990.0,104970.0,1.51817621]
[1749287097035,0.08022103,104990.0,104980.0,0.31548772]
[1749287097256,0.0706965,104990.0,104980.0,0.31548772]
[1749287099207,0.08022103,104990.0,104980.0,0.31548772]
[1749287099417,0.62071098,104990.0,104980.0,0.31548772]
[1749287100225,0.63023551,104990.0,104980.0,0.31548772]
[1749287100658,0.62071098,104990.0,104980.0,0.31548772]
[1749287101193,0.63023551,104990.0,104980.0,0.31548772]
[1749287101779,0.62071098,104990.0,104980.0,0.31548772]
[1749287101985,0.63023542,104990.0,104980.0,0.31548772]
[1749287102878,0.62071098,104990.0,104980.0,0.31548772]
[1749287103091,0.63023551,104990.0,104980.0,0.31548772]
[1749287103918,0.62071098,104990.0,104980.0,0.31548772]
[1749287104142,0.60411098,104990.0,104980.0,0.31548772]
[1749287104553,0.61363551,104990.0,104980.0,0.31548772]
[1749287108230,0.61363551,104990.0,104980.0,0.34411572]
[1749287110254,0.60411098,104990.0,104980.0,0.34411572]
[1749287110498,0.06362103,104990.0,104980.0,0.34411572]
[1749287110719,0.04762103,104990.0,104980.0,0.34411572]
[1749287111170,0.01904798,104990.0,104980.0,0.34411572]
[1749287111392,0.0095239,104990.0,104980.0,0.9104302]
[1749287111623,0.01904798,104990.0,104980.0,0.9104302]
[1749287111839,0.03686759,104990.0,104980.0,0.9104302]
[1749287112070,0.04639185,104990.0,104980.0,0.9104302]
[1749287112276,0.04639185,104990.0,104980.0,0.36041572]
[1749287112778,0.01904798,104990.0,104980.0,0.9104302]
[1749287112994,0.03686755,104990.0,104980.0,0.9104302]
[1749287113211,0.03686755,104990.0,104980.0,0.9256302]
[1749287113426,0.0339766,104990.0,104980.0,0.9256302]
[1749287113650,0.01615703,104990.0,104980.0,0.9256302]
[1749287114086,0.01375703,104990.0,104980.0,0.9256302]
[1749287114335,0.02328129,104990.0,104980.0,0.9104302]
[1749287114541,0.04110241,104990.0,104980.0,0.9104302]
[1749287114762,0.05062685,104990.0,104980.0,0.36041572]
[1749287114996,0.05361479,104990.0,104980.0,0.34411572]
[1749287115199,0.03578431,104990.0,104980.0,0.34411572]
[1749287115414,0.05361479,104990.0,104980.0,0.34411572]
[1749287115665,0.06991479,104990.0,104980.0,0.34411572]
[1749287116081,0.06039035,104990.0,104980.0,0.34411572]
[1749287116291,0.06693623,104990.0,104980.0,0.34411572]
[1749287116490,0.06693622,104990.0,104980.0,0.34411572]
[1749287116698,0.05208431,104990.0,104980.0,0.72239572]
[1749287116902,0.05063622,104990.0,104980.0,0.72239572]
[1749287117107,0.0536149,104990.0,104980.0,0.72239572]
[1749287118147,0.05361489,104990.0,104980.0,0.72239572]
[1749287118301,0.0357844,104990.0,104980.0,0.72239572]
[1749287118499,0.05363234,104990.0,104980.0,0.72239572]
[1749287118906,0.0357844,104990.0,104980.0,0.72239572]
[1749287119109,0.05363234,104990.0,104980.0,0.72239572]
[1749287119295,0.60364673,104990.0,104980.0,0.72239572]
[1749287119498,0.04410781,104990.0,104980.0,0.72239572]
[1749287119698,0.05363225,104990.0,104980.0,0.72239572]
[1749287119996,0.02625987,104990.0,104980.0,0.72239572]
[1749287120193,0.05365356,104990.0,104980.0,0.73615323]
[1749287120400,0.05067489,104990.0,104980.0,0.73615323]
[1749287120739,0.05365347,104990.0,104980.0,0.73615323]
[1749287121667,0.03578422,104990.0,104980.0,0.73615323]
[1749287121862,0.05365344,104990.0,104980.0,0.73615323]
[1749287122121,0.05056129,104990.0,104980.0,0.73615323]
[1749287122538,0.05353987,104990.0,104980.0,0.73615323]
[1749287123254,0.0630644,104990.0,104980.0,0.73615323]
[1749287123452,0.04519518,104990.0,104980.0,0.73615323]
[1749287123678,0.03567065,104990.0,104980.0,0.73615323]
[1749287123862,0.06008585,104990.0,104980.0,0.73615323]
[1749287124071,0.05060024,104990.0,104980.0,0.73615323]
[1749287124277,0.06846958,104990.0,104980.0,0.72095323]
[1749287124990,0.05060024,104990.0,104980.0,0.72095323]
[1749287125137,0.06846959,104990.0,104980.0,0.72095323]
[1749287125337,0.05894506,104990.0,104980.0,0.72095323]
[1749287125543,0.05894515,104990.0,104980.0,0.73685323]
[1749287128164,0.05894516,104990.0,104980.0,0.73685323]
[1749287128447,0.03809722,104990.0,104980.0,0.73685323]
[1749287128646,0.04942063,104990.0,104980.0,0.73685323]
[1749287128875,0.04644205,104990.0,104980.0,0.73685323]
[1749287129095,0.04942065,104990.0,104980.0,0.73685323]
[1749287129299,0.05894518,104990.0,104980.0,0.73685323]
[1749287129502,0.05894518,104990.0,104980.0,0.98393323]
[1749287130808,0.03155127,104990.0,104980.0,0.98393323]
[1749287130985,0.04644223,104990.0,104980.0,0.98393323]
[1749287131187,0.03155127,104990.0,104980.0,0.98393323]
[1749287131500,0.04942081,104990.0,104980.0,0.98393323]
[1749287132192,0.01786954,104990.0,104980.0,0.99345803]
[1749287132421,0.77215512,105000.0,104980.0,0.99345803]
[1749287132625,0.77215512,105000.0,104990.0,0.19049433]
[1749287132626,1.12136161,105000.0,104990.0,0.19049433]
[1749287132825,1.10349207,105000.0,104990.0,0.19049433]
[1749287133032,0.57134713,105000.0,104990.0,0.20001904]
[1749287133216,1.12136161,105000.0,104990.0,0.20001904]
[1749287133431,1.11466054,105000.0,104990.0,0.20001904]
[1749287133652,1.12136168,105000.0,104990.0,0.20001904]
[1749287134165,1.096791,105000.0,104990.0,0.19049433]
[1749287134385,1.11466071,105000.0,104990.0,0.28837904]
[1749287134841,1.12136185,105000.0,104990.0,0.28837904]
[1749287135481,1.096791,105000.0,104990.0,0.28837904]
[1749287135686,1.12136189,105000.0,104990.0,0.28837904]
[1749287135919,1.11466074,105000.0,104990.0,0.28837904]
[1749287136127,1.12136189,105000.0,104990.0,0.28837904]
[1749287136328,1.10349215,105000.0,104990.0,0.28837904]
[1749287136748,1.11466074,105000.0,104990.0,0.28837904]
[1749287136986,1.12136193,105000.0,104990.0,0.28837904]
[1749287137212,1.096791,105000.0,104990.0,0.28837904]
[1749287137394,1.12136193,105000.0,104990.0,0.28837904]
[1749287137552,1.12136193,105000.0,104990.0,0.27885433]
[1749287137969,1.10349216,105000.0,104990.0,0.27885433]
[1749287138176,1.12136245,105000.0,104990.0,0.28837904]
[1749287139289,1.12136245,105000.0,104990.0,0.27885433]
[1749287139666,1.11466116,105000.0,104990.0,0.27885433]
[1749287139870,1.12136281,105000.0,104990.0,0.27885433]
[1749287140270,1.13088661,105000.0,104990.0,0.28837895]
[1749287140500,1.12418587,105000.0,104990.0,0.28837904]
[1749287140704,1.13088752,105000.0,104990.0,0.29790366]
[1749287140908,1.13088752,105000.0,104990.0,0.28837904]
[1749287141519,1.13088752,105000.0,104990.0,0.29790366]
[1749287142054,1.13088753,105000.0,104990.0,0.29790366]
[1749287142274,1.13088753,105000.0,104990.0,0.30742819]
[1749287143220,1.11301645,105000.0,104990.0,0.30742819]
[1749287143466,1.13088755,105000.0,104990.0,0.30742819]
[1749287143710,1.13088755,105000.0,104990.0,0.28837904]
[1749287144205,1.13386611,105000.0,104990.0,0.27885433]
[1749287144463,1.12716447,105000.0,104990.0,0.28837904]
[1749287144690,1.13386606,105000.0,104990.0,0.28837904]
[1749287144912,1.11301644,105000.0,104990.0,0.29790366]
[1749287145117,1.12418584,105000.0,104990.0,0.29790366]
[1749287145340,1.12418584,105000.0,104990.0,0.27885433]
[1749287145544,1.12716442,105000.0,104990.0,0.28837904]
[1749287145742,1.13386604,105000.0,104990.0,0.28837904]
[1749287146201,0.89681496,105000.0,104990.0,0.28837904]
[1749287146405,1.08431289,105000.0,104990.0,0.28837904]
[1749287146593,1.08729147,105000.0,104990.0,0.28837904]
[1749287146791,1.08729142,105000.0,104990.0,0.28837904]
[1749287146998,1.07478904,105000.0,104990.0,0.27885433]
[1749287147202,1.06808742,105000.0,104990.0,0.27885433]
[1749287147570,1.07776762,105000.0,104990.0,0.28837904]
[1749287148354,1.06808742,105000.0,104990.0,0.28837904]
[1749287148541,1.60991112,105000.0,104990.0,0.28837904]
[1749287148767,1.62480352,105000.0,104990.0,0.28837904]
[1749287149169,1.6277821,105000.0,104990.0,0.28837904]
[1749287149783,1.62480352,105000.0,104990.0,0.28837904]
[1749287149998,1.62778211,105000.0,104990.0,0.29790366]
[1749287150201,1.62108049,105000.0,104990.0,0.28837904]
[1749287150403,1.06808743,105000.0,104990.0,0.29790366]
[1749287150603,1.05989664,105000.0,104990.0,0.29790366]
[1749287151096,1.07106598,105000.0,104990.0,0.29790366]
[1749287151296,0.33727659,105000.0,104990.0,0.29790366]
[1749287151493,0.02084947,105000.0,104990.0,0.99556605]
[1749287151711,0.02084947,105000.0,104990.0,1.02419005]
[1749287151943,0.00297858,105000.0,104990.0,1.02419005]
[1749287152145,0.02084693,105000.0,104990.0,1.02419005]
[1749287152390,0.60750171,105010.0,105000.0,0.24172334]
[1749287152573,0.60750171,105010.0,105000.0,0.53080334]
[1749287152788,0.62834865,105010.0,105000.0,0.53080334]
[1749287153291,0.61882584,105010.0,105000.0,0.53080334]
[1749287153476,0.62834856,105010.0,105000.0,0.53080334]
[1749287153715,0.61047982,105010.0,105000.0,0.53080334]
[1749287153920,0.6253523,105010.0,105000.0,0.53080334]
[1749287154128,0.60750226,105010.0,105000.0,0.53080352]
[1749287154339,0.60750226,105010.0,105000.0,1.18674047]
[1749287154340,0.02082894,105010.0,105000.0,1.18674047]
[1749287154539,0.03035084,105010.0,105000.0,1.18674047]
[1749287154725,0.03035084,105010.0,105000.0,0.63672599]
[1749287154726,0.0398731,105010.0,105000.0,0.63672599]
[1749287154937,0.03689507,105010.0,105000.0,0.63672599]
[1749287155351,0.02737281,105010.0,105000.0,0.63672599]
[1749287155577,0.03689361,105010.0,105000.0,0.63672599]
[1749287155789,0.03689281,105010.0,105000.0,0.66634699]
[1749287156001,0.01904434,105010.0,105000.0,0.66634699]
[1749287156879,0.00952208,105010.0,105000.0,0.66634699]
[1749287157086,0.01904434,105010.0,105000.0,0.66634699]
[1749287157774,0.90905747,105020.0,105010.0,0.23008086]
[1749287157995,0.95834326,105020.0,105010.0,0.42412306]
[1749287158633,0.38097459,105020.0,105010.0,0.44316803]
[1749287158845,0.94583487,105020.0,105010.0,0.44316803]
[1749287159062,0.93688306,105020.0,105010.0,0.44316803]
[1749287159312,0.93155907,105020.0,105010.0,0.33600306]
[1749287159534,0.94938278,105020.0,105010.0,0.72256569]
[1749287160240,0.94938277,105020.0,105010.0,0.72256569]
[1749287160433,0.94108097,105020.0,105010.0,0.71304306]
[1749287160683,0.95890325,105020.0,105010.0,0.71304306]
[1749287161121,0.96852591,105020.0,105010.0,0.71304306]
[1749287161319,0.95890326,105020.0,105010.0,0.72256569]
[1749287161567,1.49939593,105020.0,105010.0,0.73208822]
[1749287161805,0.0212808,105020.0,105010.0,0.73208785]
[1749287162034,0.55049509,105020.0,105010.0,0.73208785]
[1749287162257,0.56001626,105020.0,105010.0,0.76070685]
[1749287162932,0.56001626,105020.0,105010.0,0.76170685]
[1749287163465,0.56953762,105020.0,105010.0,0.76170685]
[1749287163903,0.56953762,105020.0,105010.0,1.31172133]
[1749287163904,0.00048061,105020.0,105010.0,1.31172133]
[1749287164550,0.00048061,105020.0,105010.0,0.76170685]
[1749287164983,0.00048061,105020.0,105010.0,0.76070685]
[1749287165605,0.00048061,105020.0,105010.0,0.76170685]
[1749287165829,0.00048061,105020.0,105010.0,0.76370685]
[1749287169288,0.55049509,105020.0,105010.0,0.76370685]
[1749287169921,0.00048061,105020.0,105010.0,0.76370685]
[1749287173720,0.76949934,105020.0,105010.0,0.21761948]
[1749287173896,1.34119301,105020.0,105010.0,0.47615948]
[1749287174112,1.34119301,105020.0,105010.0,0.67614043]
[1749287174334,1.32778323,105020.0,105010.0,0.67614043]
[1749287174522,1.32778323,105020.0,105010.0,0.66661753]
[1749287174757,1.35898323,105020.0,105010.0,0.66661753]
[1749287174962,1.34946151,105020.0,105010.0,0.66661753]
[1749287175847,1.3335616,105020.0,105010.0,0.66661753]
[1749287176251,1.3494616,105020.0,105010.0,0.66461753]
[1749287176665,1.3494616,105020.0,105010.0,0.66561753]
[1749287176868,1.31577129,105020.0,105010.0,0.66561753]
[1749287177072,1.31827399,105020.0,105010.0,0.66461753]
[1749287177327,0.76729984,105020.0,105010.0,0.66461753]
[1749287177653,0.74949714,105020.0,105010.0,0.66461753]
[1749287177847,0.76729984,105020.0,105010.0,0.66461753]
[1749287178881,0.76730268,105020.0,105010.0,0.66461753]
[1749287179252,0.74949714,105020.0,105010.0,0.66461753]
[1749287179455,0.76730268,105020.0,105010.0,0.66461753]
[1749287180423,0.76730518,105020.0,105010.0,0.67414043]
[1749287181041,0.7702831,105020.0,105010.0,0.68366324]
[1749287181251,0.76781748,105020.0,105010.0,0.66461753]
[1749287182073,0.74999506,105020.0,105010.0,0.67414034]
[1749287182281,0.76781884,105020.0,105010.0,0.67414043]
[1749287183327,0.74701714,105020.0,105010.0,0.67414043]
[1749287183558,0.76782551,105020.0,105010.0,0.66461753]
[1749287184246,0.76782551,105020.0,105010.0,0.67414043]
[1749287185353,0.74999506,105020.0,105010.0,0.67414043]
[1749287185562,0.76782621,105020.0,105010.0,0.68366324]
[1749287185769,0.76782621,105020.0,105010.0,0.67414043]
[1749287185991,0.76484829,105020.0,105010.0,0.66461753]
[1749287186202,0.76782621,105020.0,105010.0,0.67414034]
[1749287186810,0.7678268,105020.0,105010.0,0.69906306]